bitfinex-derivatives/quotes_BNBF0:USTF0_20250305
["timestamp","ask_amount","ask_price","bid_price","bid_amount"]
[1741180868217,5.15821784,598.01,596.68,1.25070033]
[1741180868418,3.99927485,598.0,596.68,1.25070033]
[1741180868619,5.15821784,597.99,596.68,1.25070033]
[1741180868817,3.99927485,597.98,596.68,1.25070033]
[1741180869017,5.15821784,597.97,596.68,1.25070033]
[1741180869221,3.99927485,597.96,596.68,1.25070033]
[1741180869424,3.99927485,597.95,596.68,1.25070033]
[1741180869723,5.15821784,597.94,596.55,1.25070033]
[1741180870023,0.29126823,598.05,596.55,1.25070033]
[1741180870024,5.15821784,597.93,596.55,1.25070033]
[1741180870223,5.15821784,597.92,596.55,1.25070033]
[1741180870421,3.99927485,597.91,596.55,1.25070033]
[1741180870717,5.15821784,597.9,596.55,1.25070033]
[1741180870922,3.99927485,597.89,596.55,1.25070033]
[1741180871223,5.15821784,597.88,596.55,1.25070033]
[1741180871424,0.91668117,597.87,596.55,1.25070033]
[1741180871623,0.91668117,597.86,596.55,1.25070033]
[1741180871819,0.91668117,597.85,596.55,1.25070033]
[1741180872023,0.91668117,597.84,596.55,1.25070033]
[1741180872324,3.45407598,598.83,596.55,1.25070033]
[1741180872325,0.91668117,597.83,596.55,1.25070033]
[1741180872522,0.91668117,597.82,596.55,1.25070033]
[1741180872723,2.07562416,597.9,596.55,1.25070033]
[1741180873023,0.91668117,597.89,596.68,1.25070033]
[1741180873224,0.91668117,597.88,596.68,1.25070033]
[1741180873425,4.00268867,597.87,596.68,1.25070033]
[1741180873622,4.00268867,597.86,596.68,1.25070033]
[1741180873822,4.00268867,597.85,596.68,1.25070033]
[1741180874022,4.00268867,597.84,596.68,1.25070033]
[1741180874223,4.00268867,597.83,596.68,1.25070033]
[1741180874524,0.29128286,597.91,596.48,1.25070033]
[1741180874525,5.16163166,597.82,596.48,1.25070033]
[1741180874724,4.00268867,597.81,596.48,1.25070033]
[1741180875028,5.16163166,597.8,596.48,1.25070033]
[1741180875218,4.00468568,597.79,596.48,1.25070033]
[1741180875417,4.00468568,597.78,596.48,1.25070033]
[1741180875621,4.00468568,597.77,596.48,1.25070033]
[1741180875821,4.00468568,597.76,596.48,1.25070033]
[1741180876023,3.6946477,597.75,596.48,1.25070033]
[1741180876219,0.9181131,597.74,596.48,1.25070033]
[1741180876424,0.9181131,597.73,596.48,1.25070033]
[1741180876618,0.9181131,597.74,596.48,1.25070033]
[1741180876819,1.15894299,597.75,596.36,0.29128286]
[1741180876820,4.00520064,597.88,596.44,1.25070033]
[1741180877125,4.00520064,597.87,596.44,1.25070033]
[1741180877319,4.00520064,597.86,596.44,1.25070033]
[1741180877519,5.16414363,597.85,596.44,1.25070033]
[1741180877819,2.53644633,597.84,596.44,1.25070033]
[1741180878022,0.9181131,597.83,596.44,1.25070033]
[1741180878226,0.9181131,597.82,596.44,1.25070033]
[1741180878527,0.9181131,597.81,596.44,1.25070033]
[1741180878725,0.9181131,597.8,596.44,1.25070033]
[1741180878920,5.16521021,597.9,596.44,1.25070033]
[1741180879125,4.00626722,597.89,596.76,1.25070033]
[1741180879420,5.16521021,597.88,596.76,1.25070033]
[1741180879628,4.00626722,597.87,596.76,1.25070033]
[1741180879825,4.00626722,597.86,596.76,1.25070033]
[1741180880023,5.16521021,597.85,596.76,1.25070033]
[1741180880327,4.00626722,597.84,596.76,1.25070033]
[1741180880626,5.16521021,597.83,596.76,1.25070033]
[1741180880828,4.00626722,597.82,596.76,1.25070033]
[1741180881027,4.00626722,597.81,596.76,1.25070033]
[1741180881224,4.00626722,597.8,596.75,1.25070033]
[1741180881428,4.00626722,597.79,596.75,1.25070033]
[1741180881727,5.16521021,597.78,596.75,1.25070033]
[1741180881926,4.00626722,597.77,596.75,1.25070033]
[1741180882126,2.07705609,597.76,596.75,1.25070033]
[1741180882327,0.9181131,597.75,596.75,1.25070033]
[1741180882522,0.9181131,597.74,596.75,1.25070033]
[1741180882722,1.15894299,597.76,596.75,1.25070033]
[1741180882925,5.17026912,597.89,596.75,1.25070033]
[1741180883129,4.01132613,597.88,596.75,1.25070033]
[1741180883425,3.69796938,597.87,596.75,1.25070033]
[1741180883725,2.07705609,597.86,596.75,1.25070033]
[1741180883930,0.9181131,597.85,596.74,1.25070033]
[1741180884326,4.01380011,597.95,596.74,1.25070033]
[1741180884630,4.01380011,597.94,596.74,1.25070033]
[1741180884929,5.1727431,597.93,596.74,1.25070033]
[1741180885129,5.1727431,597.92,596.74,1.25070033]
[1741180885330,4.01380011,597.91,596.74,1.25070033]
[1741180885524,5.1727431,597.9,596.74,1.25070033]
[1741180885724,5.1727431,597.89,596.74,1.25070033]
[1741180885923,4.01380011,597.88,596.86,1.25070033]
[1741180886124,5.1727431,597.87,596.86,1.25070033]
[1741180886424,2.54035422,597.86,596.86,1.25070033]
[1741180886624,2.54035422,597.85,596.86,1.25070033]
[1741180886825,2.54035422,597.84,596.86,1.25070033]
[1741180887029,0.9181131,597.83,596.86,1.25070033]
[1741180887230,2.07705609,597.82,596.86,1.25070033]
[1741180887531,1.15894299,597.82,596.86,1.25070033]
[1741180888232,4.02025237,597.94,596.86,1.25070033]
[1741180888431,5.18203869,597.93,596.86,1.25070033]
[1741180888729,5.18203869,597.92,596.92,1.25070033]
[1741180888934,4.0230957,597.91,596.92,1.25070033]
[1741180889128,4.0230957,597.9,596.92,1.25070033]
[1741180889326,4.0230957,597.89,596.92,1.25070033]
[1741180889532,4.0230957,597.88,596.92,1.25070033]
[1741180889735,5.18531094,597.87,596.92,1.25070033]
[1741180890038,2.5465104,597.86,596.92,1.25070033]
[1741180890234,4.3608632,597.85,596.9,1.25070033]
[1741180890426,4.02633113,597.84,596.9,1.25070033]
[1741180890734,4.02633113,597.83,596.9,1.25070033]
[1741180890926,5.18527412,597.82,596.9,1.25070033]
[1741180891129,4.02633113,597.81,596.9,1.25070033]
[1741180891331,5.18527412,597.8,596.9,1.25070033]
[1741180891532,4.02633113,597.79,596.9,1.25070033]
[1741180891729,5.18527412,597.78,596.9,1.25070033]
[1741180891934,2.5465104,597.77,596.9,1.25070033]
[1741180892132,0.9181131,597.76,596.9,1.25070033]
[1741180892331,0.92589157,597.75,596.9,1.25070033]
[1741180892535,2.55691115,597.74,596.9,1.25070033]
[1741180892737,3.71585414,597.73,596.85,1.25070033]
[1741180893032,3.71584059,597.72,596.85,1.25070033]
[1741180893237,4.0382305,597.71,596.85,1.541971]
[1741180893437,1.15894299,597.72,596.85,1.541971]
[1741180893438,4.0382305,597.7,596.85,1.541971]
[1741180893634,4.0382305,597.69,596.85,1.541971]
[1741180893833,5.19717349,597.68,596.85,1.541971]
[1741180894036,4.0382305,597.67,596.85,1.541971]
[1741180894334,2.08483456,597.66,596.85,0.29127067]
[1741180894535,1.15894299,597.66,596.85,0.29127067]
[1741180894932,1.48215584,597.79,596.85,0.29127067]
[1741180895130,4.04041276,597.78,596.85,0.29127067]
[1741180895336,4.04041276,597.77,596.85,0.29127067]
[1741180895536,5.21181674,597.76,596.85,0.29127067]
[1741180895736,4.04041276,597.75,596.85,0.29127067]
[1741180895934,5.21218124,597.74,596.84,1.25070033]
[1741180896137,2.55825692,597.73,596.84,1.25070033]
[1741180896438,0.9263817,597.72,596.85,0.2912341]
[1741180896637,1.17140398,597.74,596.85,0.2912341]
[1741180896838,1.17140398,597.71,596.85,0.2912341]
[1741180897341,0.33454886,597.82,596.85,0.2912341]
[1741180897637,2.55957457,597.81,596.85,0.2912341]
[1741180897838,3.73136276,597.8,596.85,0.2912341]
[1741180898038,2.55957457,597.79,596.85,0.2912341]
[1741180898239,3.73136276,597.78,596.85,0.2912341]
[1741180898441,2.55957457,597.77,596.91,1.25070033]
[1741180898640,3.73136276,597.76,596.91,1.25070033]
[1741180898837,2.55957457,597.75,596.91,1.25070033]
[1741180899034,0.92684613,597.74,596.91,1.25070033]
[1741180899238,3.73167327,597.73,596.91,1.25070033]
[1741180899441,2.55988508,597.72,596.91,1.25070033]
[1741180899641,2.55988508,597.71,596.91,1.25070033]
[1741180899843,2.55988508,597.7,596.91,1.25070033]
[1741180900043,3.73174171,597.69,596.91,1.25070033]
[1741180900343,0.92684613,597.68,596.89,1.25070033]
[1741180900541,2.09863432,597.67,596.89,1.25070033]
[1741180900742,0.92684613,597.66,596.89,1.25070033]
[1741180900942,1.17178819,597.67,596.89,1.25070033]
[1741180901137,0.33454886,597.82,596.89,1.25070033]
[1741180901138,1.17178819,597.65,596.89,1.25070033]
[1741180901940,2.09896597,597.64,596.89,1.25070033]
[1741180902244,1.17178819,597.64,596.87,0.29122557]
[1741180902439,1.17178819,597.63,596.87,0.29122557]
[1741180902944,1.48343048,597.71,596.87,0.29122557]
[1741180903143,4.04384025,597.7,596.87,0.29122557]
[1741180903339,0.92717504,597.69,596.87,0.29122557]
[1741180903544,2.56036933,597.68,596.87,0.29122557]
[1741180903745,2.56036933,597.67,596.87,0.29122557]
[1741180903945,0.92716028,597.66,596.87,0.29122557]
[1741180904244,1.17219425,597.68,596.9,1.25070033]
[1741180904446,0.92713474,597.67,596.9,1.25070033]
[1741180904742,0.92713474,597.66,596.9,1.25070033]
[1741180904946,0.9271545,597.65,596.9,1.25070033]
[1741180905245,0.92719745,597.64,596.9,1.25070033]
[1741180905445,0.92719745,597.63,596.9,1.25070033]
[1741180905639,1.17217816,597.63,596.87,0.29122557]
[1741180906242,1.17217816,597.62,596.87,0.29122557]
[1741180906944,0.33454886,597.82,596.87,0.29122557]
[1741180907144,4.04381774,597.81,596.87,0.29122557]
[1741180907344,4.37837779,597.8,596.87,0.29122557]
[1741180907539,4.37838339,597.79,596.87,0.29122557]
[1741180907745,4.37838898,597.78,596.87,0.29122557]
[1741180907945,4.04381774,597.77,596.81,1.25070033]
[1741180908139,4.04381774,597.76,596.81,1.25070033]
[1741180908340,4.04381774,597.75,596.87,0.29126092]
[1741180908544,4.04381774,597.74,596.87,0.29126092]
[1741180908841,5.21607717,597.73,596.87,0.29126092]
[1741180909045,4.04381774,597.72,596.87,0.29126092]
[1741180909242,5.21607717,597.71,596.87,0.29126092]
[1741180909444,4.04381774,597.7,596.87,0.29126092]
[1741180909645,5.21607717,597.69,596.87,0.29126092]
[1741180909843,4.04381774,597.68,596.87,0.29126092]
[1741180910046,4.04588567,597.67,596.87,0.29126092]
[1741180910749,1.63403836,597.67,596.87,0.29126092]
[1741180910953,4.04724673,597.66,596.84,1.25070033]
[1741180911141,5.21950616,597.65,596.87,0.29128042]
[1741180911346,4.04724673,597.64,596.87,0.29128042]
[1741180911547,2.56253327,597.63,596.87,0.29128042]
[1741180911744,2.10020534,597.62,596.87,0.29128042]
[1741180912053,0.92816127,597.61,596.87,0.29128042]
[1741180912249,1.17225943,597.61,596.87,0.29128042]
[1741180912750,0.33457124,597.78,596.87,0.29128042]
[1741180912951,4.04950029,597.77,596.87,0.29128042]
[1741180913149,4.04950029,597.76,596.87,0.29128042]
[1741180913349,4.04950029,597.75,596.87,0.29128042]
[1741180913547,4.04950029,597.74,596.87,0.29128042]
[1741180913750,4.04950029,597.73,596.87,0.29128042]
[1741180913950,5.22354204,597.72,596.85,1.25070033]
[1741180914151,4.04950029,597.71,596.87,1.25070033]
[1741180914347,4.04950029,597.7,596.87,1.54195637]
[1741180914546,4.04950029,597.69,596.87,1.54195637]
[1741180914747,4.04950029,597.68,596.87,1.54195637]
[1741180915050,4.04950029,597.67,596.87,1.54195637]
[1741180915252,3.73800983,597.66,596.87,1.54195637]
[1741180915452,2.56396808,597.65,596.87,1.54195637]
[1741180915753,2.56426733,597.64,596.87,1.54195637]
[1741180915949,0.92875688,597.63,596.87,1.54195637]
[1741180916149,1.17404175,597.64,596.87,1.54195637]
[1741180916150,0.92875688,597.62,596.87,1.54195637]
[1741180916351,1.17404175,597.62,596.95,1.25070033]
[1741180916548,1.17404175,597.61,596.95,1.25070033]
[1741180917455,0.33457124,597.78,596.95,1.25070033]
[1741180917648,4.05083278,597.77,596.95,1.25070033]
[1741180917852,4.05083278,597.76,596.95,1.25070033]
[1741180918049,4.05083278,597.75,596.95,1.25070033]
[1741180918254,4.05083278,597.74,596.99,1.25070033]
[1741180918452,4.05083278,597.73,596.99,1.25070033]
[1741180918652,4.05083278,597.72,596.99,1.25070033]
[1741180918853,4.05083278,597.71,596.99,1.25070033]
[1741180919053,4.05083278,597.7,596.99,1.25070033]
[1741180919251,4.05083278,597.69,596.99,1.25070033]
[1741180919455,4.05083278,597.68,596.9,0.29123898]
[1741180919658,5.22506093,597.67,596.9,0.29123898]
[1741180919858,4.05083278,597.66,596.9,0.29123898]
[1741180920051,0.33457124,597.78,596.81,1.25070033]
[1741180920052,5.22506093,597.65,596.81,1.25070033]
[1741180920254,4.05083278,597.64,596.81,1.25070033]
[1741180920456,4.05109955,597.63,596.81,1.25070033]
[1741180920652,4.05109955,597.62,596.81,1.25070033]
[1741180920855,4.05115397,597.61,596.81,1.25070033]
[1741180921056,0.33457124,597.78,596.81,1.25070033]
[1741180921057,3.73904616,597.6,596.81,1.25070033]
[1741180921252,2.56481801,597.59,596.81,1.25070033]
[1741180921457,2.56481801,597.58,596.97,1.25070033]
[1741180921658,0.92875923,597.57,596.97,1.25070033]
[1741180921960,0.92875923,597.56,596.97,1.25070033]
[1741180922158,0.92875923,597.55,596.97,1.25070033]
[1741180922454,1.17422815,597.55,596.97,1.25070033]
[1741180922659,2.10324508,597.54,596.97,1.25070033]
[1741180922959,2.10324508,597.54,596.83,1.25070033]
[1741180922960,1.17422815,597.54,596.83,1.25070033]
[1741180923557,1.48642655,597.77,596.83,1.25070033]
[1741180923756,4.38650032,597.76,596.83,1.25070033]
[1741180923964,5.22644766,597.75,596.83,1.25070033]
[1741180924159,4.05191788,597.74,596.83,1.25070033]
[1741180924366,1.17452978,597.75,596.83,1.25070033]
[1741180924367,4.05191788,597.73,596.83,1.25070033]
[1741180924566,4.05191788,597.72,596.83,1.25070033]
[1741180924865,4.05191788,597.71,596.84,1.25070033]
[1741180925066,4.05191788,597.7,596.84,1.25070033]
[1741180925265,4.05203329,597.69,596.84,1.25070033]
[1741180925459,2.56557261,597.68,596.84,1.25070033]
[1741180925661,3.74010239,597.67,596.84,1.25070033]
[1741180925859,2.56557261,597.66,596.84,1.25070033]
[1741180926066,0.92909709,597.65,596.84,1.25070033]
[1741180926260,0.92909709,597.64,596.84,1.25070033]
[1741180926464,1.17452978,597.67,596.84,1.25070033]
[1741180926665,0.33458244,597.76,596.9,1.25070033]
[1741180926666,1.17452978,597.64,596.9,1.25070033]
[1741180927168,0.33458244,597.76,596.9,1.25070033]
[1741180927362,4.05224591,597.75,596.9,1.25070033]
[1741180927560,5.22686864,597.74,596.9,1.25070033]
[1741180927866,4.05224591,597.73,596.9,1.25070033]
[1741180928068,4.05224591,597.72,596.9,1.25070033]
[1741180928269,4.05224591,597.71,597.07,1.25070033]
[1741180928464,4.05224591,597.7,597.07,1.25070033]
[1741180928666,4.05224591,597.69,597.07,1.25070033]
[1741180928868,4.05248698,597.68,597.07,1.25070033]
[1741180929067,2.56571056,597.67,597.07,1.25070033]
[1741180929263,2.56571056,597.66,597.07,1.25070033]
[1741180929466,2.56571056,597.65,597.07,1.25070033]
[1741180929668,2.56571056,597.64,597.07,1.25070033]
[1741180929868,2.56608719,597.63,597.07,1.25070033]
[1741180930065,0.92908459,597.62,597.07,1.25070033]
[1741180930266,0.92908459,597.61,597.07,1.25070033]
[1741180930466,3.74078369,597.6,597.07,1.25070033]
[1741180930673,1.17462273,597.6,597.07,1.25070033]
[1741180931071,2.10394965,597.59,597.07,1.25070033]
[1741180931271,0.92932692,597.58,597.07,1.25070033]
[1741180931577,0.33458244,597.76,597.07,1.25070033]
[1741180931773,2.56601819,597.75,597.07,1.25070033]
[1741180931973,2.56601819,597.74,597.07,1.25070033]
[1741180932175,2.56601819,597.73,597.03,1.25070033]
[1741180932381,0.92917713,597.72,597.03,1.25070033]
[1741180932678,0.92902401,597.71,597.03,1.25070033]
[1741180932978,0.92903673,597.7,597.03,1.25070033]
[1741180933280,0.33458244,597.76,597.03,1.25070033]
[1741180933281,1.17472654,597.69,597.03,1.25070033]
[1741180933675,0.92894681,597.68,597.03,1.25070033]
[1741180933979,2.103683,597.67,596.99,0.29120486]
[1741180934174,1.17472654,597.67,596.99,0.29120486]
[1741180934373,2.10376015,597.66,596.99,0.29120486]
[1741180934679,2.10376015,597.65,596.99,0.29120486]
[1741180934881,1.17472654,597.65,596.99,0.29120486]
[1741180935578,0.33458244,597.76,596.99,0.29120486]
[1741180935879,4.05286246,597.75,596.99,0.29120486]
[1741180936073,4.05286246,597.74,596.99,0.29120486]
[1741180936272,2.56611183,597.73,596.99,0.29120486]
[1741180936477,2.56611183,597.72,596.99,0.29120486]
[1741180936678,3.74090931,597.71,596.99,0.29120486]
[1741180936974,2.56611183,597.7,596.99,0.29120486]
[1741180937180,2.56611183,597.69,596.99,0.29120486]
[1741180937380,2.56611183,597.68,596.99,0.29120486]
[1741180937577,4.05310657,597.67,596.99,0.29120486]
[1741180937876,4.05310657,597.66,596.99,0.29120486]
[1741180938081,4.05310657,597.65,596.87,1.25070033]
[1741180938282,4.05310657,597.64,596.99,0.29128773]
[1741180938477,4.05310657,597.63,596.87,1.25070033]
[1741180938678,5.22790405,597.62,596.87,1.25070033]
[1741180938882,4.05310657,597.61,596.87,1.25070033]
[1741180939082,5.22790405,597.6,596.87,1.25070033]
[1741180939283,4.05310657,597.59,596.92,1.25070033]
[1741180939483,4.05310657,597.58,596.92,1.25070033]
[1741180939682,3.74099991,597.57,596.92,1.25070033]
[1741180939980,0.92930974,597.56,596.92,1.25070033]
[1741180940179,2.10410722,597.55,596.92,1.25070033]
[1741180940383,0.92936331,597.54,596.92,1.25070033]
[1741180940683,2.10416079,597.53,596.92,1.25070033]
[1741180940883,1.17479748,597.53,596.92,1.25070033]
[1741180941276,1.17479748,597.52,596.92,1.25070033]
[1741180941482,1.17479748,597.52,596.91,1.25070033]
[1741180941678,0.33458244,597.76,596.91,1.25070033]
[1741180941882,4.05358519,597.75,596.91,1.25070033]
[1741180942085,4.05358519,597.74,596.91,1.25070033]
[1741180942283,4.05358519,597.73,596.91,1.25070033]
[1741180942480,4.05358519,597.72,596.91,1.25070033]
[1741180942685,4.05358519,597.71,596.91,1.25070033]
[1741180942881,4.05358519,597.7,596.91,1.25070033]
[1741180943079,4.05358519,597.69,596.91,1.25070033]
[1741180943385,5.22858771,597.68,596.97,1.25070033]
[1741180943585,4.05358519,597.67,596.97,1.25070033]
[1741180943786,4.05358519,597.66,596.97,1.25070033]
[1741180943986,4.05358519,597.65,596.97,1.25070033]
[1741180944285,1.17500252,597.68,596.97,1.25070033]
[1741180944286,5.22858771,597.64,596.97,1.25070033]
[1741180944485,4.0536332,597.63,596.97,1.25070033]
[1741180944786,4.05364635,597.62,596.97,1.25070033]
[1741180944987,1.17500252,597.64,596.97,1.25070033]
[1741180944988,2.56654636,597.61,596.97,1.25070033]
[1741180945188,2.56654636,597.6,596.97,1.25070033]
[1741180945388,0.92939927,597.59,596.97,1.25070033]
[1741180945583,1.17500252,597.61,596.97,1.25070033]
[1741180945787,0.92940296,597.6,596.97,1.25070033]
[1741180945989,1.17500252,597.6,596.97,1.25070033]
[1741180946385,1.17500252,597.59,596.97,1.25070033]
[1741180946785,0.33458244,597.76,596.97,1.25070033]
[1741180946988,2.56637916,597.75,596.97,1.25070033]
[1741180947188,0.92931224,597.74,596.97,1.25070033]
[1741180947382,1.17471599,597.74,596.97,1.25070033]
[1741180947787,1.17471599,597.73,596.89,1.25070033]
[1741180948188,0.33458244,597.76,596.89,1.25070033]
[1741180948385,2.56583889,597.75,596.9,0.29122923]
[1741180948588,2.56584257,597.74,596.9,0.29122923]
[1741180948788,0.92909426,597.73,596.9,0.29122923]
[1741180948986,0.92909426,597.72,596.9,0.29122923]
[1741180949184,2.56580028,597.71,596.9,0.29122923]
[1741180949388,2.56582096,597.7,597.07,1.25070033]
[1741180949585,0.92908224,597.69,597.07,1.25070033]
[1741180949787,0.92908224,597.68,597.07,1.25070033]
[1741180949984,0.92914331,597.67,597.07,1.25070033]
[1741180950184,1.17468791,597.67,597.07,1.25070033]
[1741180950886,1.17468791,597.66,597.07,1.25070033]
[1741180951489,0.33458244,597.76,597.07,1.25070033]
[1741180951688,4.05273543,597.75,596.97,0.29122557]
[1741180951990,5.22748891,597.74,596.97,0.29122557]
[1741180952191,4.05273543,597.73,596.97,0.29122557]
[1741180952492,3.74077926,597.72,596.97,0.29122557]
[1741180952688,2.56602578,597.71,596.97,0.29122557]
[1741180952888,2.56602578,597.7,596.97,0.29122557]
[1741180953188,2.56602578,597.7,596.94,1.25070033]
[1741180953189,0.92919353,597.69,596.94,1.25070033]
[1741180953389,2.56602252,597.68,596.97,0.29123532]
[1741180953590,2.56602252,597.67,596.97,0.29123532]
[1741180953893,2.56602252,597.66,596.97,0.29123532]
[1741180954094,2.56606783,597.65,596.97,0.29123532]
[1741180954293,1.17475348,597.66,596.97,0.29123532]
[1741180954294,2.56606783,597.64,596.97,0.29123532]
[1741180954494,0.92917605,597.63,596.97,0.29123532]
[1741180954693,0.92917605,597.62,596.97,0.29123532]
[1741180954885,0.92917605,597.61,596.97,0.29123532]
[1741180955091,0.92928688,597.6,596.97,0.29123532]
[1741180955293,2.56632127,597.59,596.97,0.29123532]
[1741180955594,2.56632127,597.58,596.97,0.29123532]
[1741180955792,2.56638562,597.57,596.97,0.29123532]
[1741180955993,2.56638562,597.56,596.92,1.25070033]
[1741180956196,2.56638562,597.55,596.92,1.25070033]
[1741180956395,0.9293721,597.54,596.97,0.29128652]
[1741180956592,0.9293721,597.53,596.97,0.29128652]
[1741180956793,0.9293721,597.52,596.97,0.29128652]
[1741180956992,0.9293721,597.51,596.97,0.29128652]
[1741180957295,0.33458244,597.76,596.97,0.29128652]
[1741180958088,3.12385099,597.75,596.97,0.29128652]
[1741180958291,3.45844462,597.74,596.97,0.29128652]
[1741180958491,3.12385099,597.73,596.97,0.29128652]
[1741180958698,4.05315543,597.72,596.97,0.29128652]
[1741180958992,4.38776585,597.71,596.82,1.25070033]
[1741180959192,4.38777145,597.7,596.82,1.25070033]
[1741180959398,4.38777705,597.69,596.82,1.25070033]
[1741180959599,4.38778265,597.68,596.82,1.25070033]
[1741180959793,4.38778825,597.67,596.82,1.25070033]
[1741180959997,5.56270251,597.66,596.82,1.25070033]
[1741180960193,4.38779945,597.65,596.83,0.29131821]
[1741180960394,1.17490866,597.66,596.83,0.29131821]
[1741180960395,5.56271371,597.64,596.83,0.29131821]
[1741180960594,4.38781065,597.63,596.83,0.29131821]
[1741180960798,4.05315543,597.62,596.83,0.29131821]
[1741180961099,4.05315543,597.61,596.83,0.29131821]
[1741180961300,5.22806409,597.6,596.83,0.29131821]
[1741180961500,4.05315543,597.59,596.83,0.29131821]
[1741180961701,4.05315543,597.58,596.83,0.29131821]
[1741180961902,5.22806409,597.57,596.83,0.29131821]
[1741180962098,2.56626832,597.56,596.83,0.29131821]
[1741180962305,2.56626832,597.55,596.83,0.29131821]
[1741180962503,2.56626832,597.54,596.83,0.29131821]
[1741180962803,5.22743782,597.53,596.83,0.29131821]
[1741180963002,4.05253473,597.52,596.83,0.29131821]
[1741180963201,4.05253473,597.51,596.83,0.29131821]
[1741180963397,5.22744339,597.5,596.83,0.29131821]
[1741180963601,4.05253473,597.49,596.83,0.29131821]
[1741180963803,4.05253473,597.48,596.83,0.29131821]
[1741180964103,4.05253473,597.47,596.83,0.29131821]
[1741180964299,4.05253473,597.46,596.83,0.29131821]
[1741180964502,5.22744339,597.45,596.71,1.25070033]
[1741180964698,4.05253473,597.44,596.71,1.25070033]
[1741180964901,4.05253473,597.43,596.71,1.25070033]
[1741180965100,4.05253473,597.42,596.71,1.25070033]
[1741180965299,4.05253473,597.41,596.71,1.25070033]
[1741180965507,4.38731879,597.4,596.71,1.25070033]
[1741180965808,2.75036051,597.39,596.71,1.25070033]
[1741180966106,5.55876204,597.38,596.71,1.25070033]
[1741180966310,4.38385898,597.37,596.71,1.25070033]
[1741180966505,2.5627917,597.36,596.71,1.25070033]
[1741180966701,2.1042131,597.35,596.71,1.25070033]
[1741180967008,1.17490866,597.35,596.71,1.25070033]
[1741180967206,1.17490866,597.35,596.66,0.29142312]
[1741180967408,0.33480087,597.37,596.66,0.29142312]
[1741180967807,0.92680459,597.36,596.66,0.29142312]
[1741180968009,0.33480087,597.37,596.66,0.29142312]
[1741180968209,2.55833589,597.36,596.66,0.29142312]
[1741180968410,0.92648663,597.35,596.66,0.29142312]
[1741180968608,0.92648663,597.34,596.66,0.29142312]
[1741180968807,0.92648663,597.33,596.66,0.29142312]
[1741180969009,0.92648663,597.32,596.66,0.29142312]
[1741180969211,1.17126179,597.32,596.66,0.29142312]
[1741180970210,1.63059919,597.36,596.66,0.29142312]
[1741180970410,0.92577771,597.35,596.66,0.29142312]
[1741180970610,2.5563198,597.34,596.66,0.29142312]
[1741180970805,0.33480087,597.37,596.66,0.29142312]
[1741180970806,2.09623837,597.33,596.66,0.29142312]
[1741180971005,0.9257411,597.32,596.37,1.25070033]
[1741180971208,1.17046066,597.33,596.37,1.25070033]
[1741180971406,1.17046066,597.33,596.66,0.29147804]
[1741180971607,1.17046066,597.32,596.37,1.25070033]
[1741180972011,1.17046066,597.32,590.82,5.9995771]
[1741180972012,1.17046066,597.32,596.31,1.25070033]
[1741180972213,1.62950059,597.36,596.31,1.25070033]
[1741180972514,0.92517586,597.35,596.32,0.29148658]
[1741180972711,1.16971655,597.34,596.32,0.29148658]
[1741180973409,0.33480087,597.37,596.32,0.29148658]
[1741180974110,0.33480087,597.37,596.09,1.25070033]
[1741180974514,0.33480087,597.37,596.1,0.33551417]
[1741180975319,0.33480087,597.37,596.11,0.29145973]
[1741180975519,0.33480087,597.37,596.17,1.25070033]
[1741180975713,0.33480087,597.37,596.18,0.33546915]
[1741180978420,0.33480087,597.37,596.36,1.25070033]
[1741180980224,0.33480087,597.37,596.28,1.25070033]
[1741180980921,0.92437464,597.36,596.28,1.25070033]
[1741180981119,0.92437464,597.35,596.28,1.25070033]
[1741180981323,1.16870338,597.36,596.28,1.25070033]
[1741180981522,1.50351546,597.35,596.28,1.25070033]
[1741180981719,0.33481769,597.34,596.28,1.25070033]
[1741180981922,1.25919233,597.34,596.28,1.25070033]
[1741180982124,1.25742776,597.34,596.28,1.25070033]
[1741180982319,0.33481769,597.34,596.28,1.25070033]
[1741180982929,0.33481769,597.34,596.18,0.33546915]
[1741180983329,0.92261007,597.33,596.2,0.29146583]
[1741180983625,0.92261007,597.32,596.2,0.29146583]
[1741180983929,0.92261007,597.33,596.2,0.29146583]
[1741180984327,0.92261007,597.32,596.2,0.29146583]
[1741180984528,0.92261007,597.33,596.2,0.29146583]
[1741180985133,0.33481769,597.34,596.2,0.29146583]
[1741180985931,0.33481769,597.34,596.18,0.33546915]
[1741180986132,1.25742776,597.34,596.18,0.33546915]
[1741180986327,1.25742776,597.34,596.2,0.29149757]
[1741180986529,0.33481769,597.34,596.2,0.29149757]
[1741180987328,0.92261007,597.33,596.2,0.29149757]
[1741180987533,2.09131345,597.32,596.2,0.29149757]
[1741180987732,1.16870338,597.32,596.2,0.29149757]
[1741180988134,0.33481769,597.34,596.2,0.29149757]
[1741180988531,0.92261007,597.33,596.2,0.29149757]
[1741180988735,0.33481769,597.34,596.2,0.29149757]
[1741180988936,0.33481769,597.34,596.18,0.33546915]
[1741180989330,0.33481769,597.34,596.2,0.29149757]
[1741180990335,0.33481769,597.34,596.39,1.25070033]
[1741180990734,1.16537857,597.33,596.39,1.25070033]
[1741180990936,0.3348289,597.32,596.39,1.25070033]
[1741180992237,0.3348289,597.32,596.28,0.29149635]
[1741180995035,0.3348289,597.32,596.26,1.25070033]
[1741180995338,0.3348289,597.32,596.28,0.29143044]